[Event "S. A. Group BAN-chT 2018"]
[Site "Dhaka"]
[Date "2018.12.15"]
[Round "10"]
[White "Saiful Islam, Chowdhury"]
[Black "Mohammad Minhaz Uddin"]
[Result "0-1"]
[ECO "C21"]
[WhiteElo "2120"]
[BlackElo "2290"]
[Annotator "NA"]
[PlyCount "84"]
[EventDate "2018.12.07"]
[EventType "team-tourn"]
[EventCountry "BAN"]
[SourceTitle "playchess.com"]
[Source "ChessBase"]
[SourceQuality "1"]
[TimeControl "5400+30"]

1. e4 {[%emt 0:00:00]} e5 {[%emt 0:00:00]} 2. d4 {[%emt 0:00:03]} Nf6 {[%emt 0:00:30]} 3. dxe5 {[%emt 0:04:10] C21: Danish Gambit} (3. c4 g6 4. Nc3 Bg7 5. Nf3 d6 6. Be2 O-O 7. d5 a5 8. Bg5 h6 9. Bh4 g5 10. Bg3 Nh5 11. O-O Nf4 12. Nd2 Qe8 13. Rb1 f5 14. exf5 Bxf5 15. Nde4 Qg6 16. f3 Nd7 17. Rc1 h5 18. Nb5 Rac8 19. Bxf4 exf4 {0-1 (54) Poormosavi,S (2218)-Grivas,E (2468) Sharjah 2018}) 3... Nxe4 {[%emt 0:00:21]} 4. Qd5 {[%emt 0:05:32]} Nc5 {[%emt 0:00:24]} 5. Be3 {[%emt 0:01:29]} c6 {[%emt 0:01:32]} 6. Qd2 {[%emt 0:03:36]} d5 {[%emt 0:00:47]} 7. Nc3 $146 {[%emt 0:01:24]} ({Predecessor:} 7. exd6 Bxd6 8. Nc3 Nba6 9. Bxa6 Nxa6 10. O-O-O Be7 {1-0 (42) Bieri,C (2127)-Sudan,G (2086) Geneve 2001}) 7... Bf5 {[%emt 0:00:24]} 8. O-O-O {[%emt 0:01:40]} Nbd7 {[%emt 0:00:10]} 9. Nf3 {[%emt 0:02:27]} Ne6 {[%emt 0:02:58]} 10. h3 {[%emt 0:01:36]} Bb4 {[%emt 0:00:45]} 11. a3 {[%emt 0:02:00]} Ba5 {[%emt 0:00:38]} 12. Bd3 {[%emt 0:11:29]} Bxd3 {[%emt 0:08:26]} 13. Qxd3 {[%emt 0:01:01]} Bc7 {[%emt 0:03:47]} 14. Rhe1 {[%emt 0:01:04]} Nxe5 {[%emt 0:05:00]} 15. Nxe5 {[%emt 0:00:48]} Bxe5 {[%emt 0:00:02]} 16. f4 {[%emt 0:02:31]} Bxc3 {[%emt 0:00:36]} 17. Qxc3 {[%emt 0:00:29]} O-O {[%emt 0:00:13]} 18. f5 {[%emt 0:02:25]} Ng5 {[%emt 0:16:28]} 19. Bf4 {[%emt 0:00:46]} f6 {[%emt 0:00:30]} 20. h4 {[%emt 0:02:33]} Nf7 {[%emt 0:00:38]} 21. g4 {[%emt 0:00:51]} Qd7 {[%emt 0:04:58]} 22. Re6 {[%emt 0:05:07]} Rae8 {[%emt 0:00:35]} 23. Rde1 {[%emt 0:01:52]} Nd8 {[%emt 0:00:39]} 24. Rd6 {[%emt 0:09:59]} Rxe1+ {[%emt 0:04:22]} 25. Qxe1 {[%emt 0:00:09]} Qe8 {[%emt 0:00:48]} 26. Qf2 {[%emt 0:05:52]} Rf7 {[%emt 0:09:56]} 27. b3 {[%emt 0:02:00]} b6 {[%emt 0:00:59]} 28. Qg3 {[%emt 0:02:40]} Re7 {[%emt 0:08:14]} 29. g5 {[%emt 0:02:05]} Nb7 {[%emt 0:06:11]} 30. gxf6 {[%emt 0:14:20]} Nxd6 {[%emt 0:00:18]} 31. Bxd6 {[%emt 0:01:01]} (31. fxe7 $142 Ne4 32. Qd3) 31... Rf7 {[%emt 0:00:20]} 32. Be5 {[%emt 0:00:45]} Qd7 {[%emt 0:01:53]} 33. Qg5 {[%emt 0:01:28]} d4 {[%emt 0:05:52]} 34. h5 {[%emt 0:01:05]} Qd5 {[%emt 0:00:18]} 35. Qg3 {[%emt 0:00:38]} h6 {[%emt 0:05:27]} 36. Kb2 {[%emt 0:01:11]} c5 {[%emt 0:00:31]} 37. fxg7 {[%emt 0:02:31]} Rxf5 {[%emt 0:00:23]} 38. Bf4 {[%emt 0:01:55]} Rxh5 {[%emt 0:00:32]} 39. Qg6 {[%emt 0:01:11]} Qf7 $19 {[%emt 0:00:10]} 40. Qd6 {[%emt 0:00:07]} Kxg7 {[%emt 0:04:41]} 41. Be5+ {[%emt 0:00:10]} Kh7 {[%emt 0:00:01]} 42. Qb8 {[%emt 0:00:12]} Rg5 {[%emt 0:00:44]} 0-1

[Event "S. A. Group BAN-chT 2018"]
[Site "Dhaka"]
[Date "2018.12.15"]
[Round "10"]
[White "Ahmed, Sk. Nasir"]
[Black "Ahmed, Shafiq"]
[Result "1-0"]
[ECO "B31"]
[WhiteElo "2119"]
[BlackElo "2165"]
[Annotator "NA"]
[PlyCount "66"]
[EventDate "2018.12.07"]
[EventType "team-tourn"]
[EventCountry "BAN"]
[SourceTitle "playchess.com"]
[Source "ChessBase"]
[SourceQuality "1"]
[TimeControl "5400+30"]

1. e4 {[%emt 0:00:00]} c5 {[%emt 0:00:00]} 2. Nf3 {[%emt 0:00:00]} Nc6 {[%emt 0:00:09]} 3. Bb5 {[%emt 0:00:00]} g6 {[%emt 0:02:16]} 4. Bxc6 {[%emt 0:00:00]} bxc6 {[%emt 0:00:13]} 5. O-O {[%emt 0:01:10]} Bg7 {[%emt 0:00:20]} 6. c3 {[%emt 0:01:22]} Ba6 {[%emt 0:09:46]} 7. d3 {[%emt 0:01:01]} Nf6 {[%emt 0:00:33]} 8. Re1 {[%emt 0:00:40]} O-O {[%emt 0:00:28]} 9. e5 {[%emt 0:03:02]} Nd5 {[%emt 0:00:26]} 10. c4 {[%emt 0:03:05]} Nc7 {[%emt 0:00:17]} 11. b3 {[%emt 0:07:38]} d5 {[%emt 0:03:37]} 12. Nc3 {[%emt 0:02:01]} Bc8 {[%emt 0:08:32]} 13. h3 {[%emt 0:06:50]} f6 {[%emt 0:09:41]} 14. Na4 {[%emt 0:11:31]} fxe5 {[%emt 0:14:48]} 15. Bb2 {[%emt 0:01:50]} Qd6 {[%emt 0:16:58]} 16. cxd5 {[%emt 0:19:38]} cxd5 {[%emt 0:01:48]} 17. Rc1 {[%emt 0:00:40]} Na6 {[%emt 0:05:10]} 18. Qe2 {[%emt 0:05:17]} Bd7 {[%emt 0:01:02]} 19. Bxe5 {[%emt 0:09:42]} Bxe5 {[%emt 0:00:16]} 20. Nxe5 {[%emt 0:00:29]} Bxa4 {[%emt 0:00:49]} 21. bxa4 {[%emt 0:00:02]} Rf4 {[%emt 0:03:19]} 22. Ng4 {[%emt 0:03:18]} h5 {[%emt 0:03:07]} 23. Nh2 {[%emt 0:03:57]} Rxa4 {[%emt 0:05:03]} 24. Qxe7 {[%emt 0:00:23]} Qxe7 {[%emt 0:00:06]} 25. Rxe7 {[%emt 0:00:05]} Rxa2 {[%emt 0:01:10]} 26. Nf3 {[%emt 0:00:34]} Rc8 {[%emt 0:02:39]} 27. Rce1 {[%emt 0:12:21]} Nb4 {[%emt 0:00:43]} 28. Rd7 {[%emt 0:01:44]} Ra6 {[%emt 0:09:26]} 29. Ree7 {[%emt 0:00:42]} Rf6 {[%emt 0:00:36]} 30. Ne5 {[%emt 0:02:56]} Nc6 {[%emt 0:01:00]} 31. Rg7+ {[%emt 0:00:41]} Kf8 {[%emt 0:00:26]} 32. Nxg6+ {[%emt 0:00:48]} Ke8 {[%emt 0:00:37]} 33. Rxd5 {[%emt 0:01:04]} Rf7 {[%emt 0:01:09]} 1-0

[Event "S. A. Group BAN-chT 2018"]
[Site "Dhaka"]
[Date "2018.12.15"]
[Round "10"]
[White "Ikramul, Haq Siam"]
[Black "Islam, Kh. Aminul"]
[Result "0-1"]
[ECO "B22"]
[WhiteElo "2116"]
[BlackElo "2253"]
[Annotator "NA"]
[PlyCount "138"]
[EventDate "2018.12.07"]
[EventType "team-tourn"]
[EventCountry "BAN"]
[SourceTitle "playchess.com"]
[Source "ChessBase"]
[SourceQuality "1"]
[TimeControl "5400+30"]

1. d4 {[%emt 0:01:00]} e6 {[%emt 0:00:00]} 2. e4 {[%emt 0:01:27]} c5 {[%emt 0:00:00]} 3. c3 {[%emt 0:03:33]} d5 {[%emt 0:00:32]} 4. exd5 {[%emt 0:00:07]} Qxd5 {[%emt 0:00:27]} 5. Nf3 {[%emt 0:00:04]} Nc6 {[%emt 0:00:52]} 6. Be3 {[%emt 0:01:18]} cxd4 {[%emt 0:00:58]} 7. Nxd4 {[%emt 0:00:01]} Nxd4 {[%emt 0:03:34] B22: Sicilian: 2 c3} 8. Qxd4 {[%emt 0:00:02]} Nf6 {[%emt 0:03:30]} 9. Nd2 {[%emt 0:08:38]} Be7 {[%emt 0:06:52]} 10. Bc4 {[%emt 0:13:11]} Qxd4 {[%emt 0:05:49]} 11. Bxd4 {[%emt 0:03:21]} O-O {[%emt 0:02:33]} 12. Nf3 {[%emt 0:04:16]} Rd8 $146 {[%emt 0:05:54]} ({Predecessor:} 12... b6 13. a4 Bb7 14. a5 Nd7 15. Ke2 {0-1 (33) Fatkhutdinov,G (2331)-Pleshakov,A (2094) Cheliabinsk 2011}) 13. O-O {[%emt 0:01:41]} Bd7 {[%emt 0:02:26]} 14. Ne5 {[%emt 0:02:43]} Be8 {[%emt 0:00:53]} 15. a4 {[%emt 0:07:32]} Nd5 {[%emt 0:00:51]} 16. Rfe1 {[%emt 0:02:20]} Bf8 {[%emt 0:05:04]} 17. Nd3 {[%emt 0:08:08]} Nc7 {[%emt 0:11:53]} 18. Bc5 {[%emt 0:06:15]} Rxd3 {[%emt 0:24:28]} 19. Bxf8 {[%emt 0:01:10]} Rd2 {[%emt 0:01:12]} 20. Bc5 {[%emt 0:06:45]} Rxb2 {[%emt 0:08:17]} 21. Be3 {[%emt 0:00:15]} Bc6 {[%emt 0:03:24]} 22. Bc1 {[%emt 0:00:55]} Rc2 {[%emt 0:00:44]} 23. Ra3 {[%emt 0:00:04]} Bd5 {[%emt 0:03:23]} 24. Bf4 {[%emt 0:00:01]} (24. Bd3 $15 Ra2 25. c4 Rxa3 26. Bxa3) 24... Bxc4 {[%emt 0:00:31]} 25. Bxc7 {[%emt 0:00:02]} Rc8 {[%emt 0:00:46]} 26. Bf4 {[%emt 0:01:39]} f6 {[%emt 0:01:24]} 27. h4 {[%emt 0:01:52]} Bd5 {[%emt 0:01:52]} 28. Rc1 {[%emt 0:00:15]} Rb2 {[%emt 0:00:50]} 29. Rd1 {[%emt 0:02:47]} h5 {[%emt 0:00:30]} 30. a5 {[%emt 0:00:06]} Kf7 {[%emt 0:01:16]} 31. Be3 {[%emt 0:00:42]} a6 {[%emt 0:00:31]} 32. Rd2 {[%emt 0:00:09]} Rb1+ {[%emt 0:00:41]} 33. Kh2 {[%emt 0:00:01]} Kg6 {[%emt 0:02:06]} 34. f3 {[%emt 0:03:20]} Kf5 {[%emt 0:00:54]} 35. Rc2 {[%emt 0:01:26]} e5 {[%emt 0:00:37]} 36. Rc1 {[%emt 0:01:19]} Rb2 {[%emt 0:00:24]} 37. Kh3 {[%emt 0:00:01]} Rc4 {[%emt 0:00:46]} 38. Raa1 {[%emt 0:02:10]} Re2 {[%emt 0:00:40]} 39. Re1 {[%emt 0:02:21]} Rxe1 {[%emt 0:00:12]} 40. Rxe1 {[%emt 0:00:01]} Rxc3 {[%emt 0:00:20]} 41. Kh2 {[%emt 0:00:45]} Bc6 {[%emt 0:00:29]} 42. Re2 {[%emt 0:00:47]} Rb3 {[%emt 0:01:07]} 43. Bf2 {[%emt 0:01:08]} Ra3 {[%emt 0:00:47]} 44. Be1 {[%emt 0:00:01]} g5 {[%emt 0:00:42]} 45. hxg5 {[%emt 0:00:25]} fxg5 {[%emt 0:00:23]} 46. Bb4 {[%emt 0:00:15]} Rd3 {[%emt 0:00:24]} 47. Rd2 {[%emt 0:00:06]} Rb3 {[%emt 0:00:37]} 48. Bd6 {[%emt 0:00:02]} h4 {[%emt 0:00:43]} 49. Re2 {[%emt 0:00:30]} e4 {[%emt 0:00:09]} 50. fxe4+ {[%emt 0:00:16]} Bxe4 {[%emt 0:00:02]} 51. Rf2+ {[%emt 0:00:20]} Kg4 {[%emt 0:00:18]} 52. Re2 {[%emt 0:00:22]} Bc6 {[%emt 0:00:14]} 53. Kg1 {[%emt 0:00:33]} Kh5 $19 {[%emt 0:00:38]} 54. Be7 {[%emt 0:00:09]} Rb5 {[%emt 0:00:26]} 55. Bd8 {[%emt 0:00:11]} g4 {[%emt 0:00:18]} 56. Bc7 {[%emt 0:00:09]} g3 {[%emt 0:00:27]} 57. Re5+ {[%emt 0:00:16]} Kg4 {[%emt 0:00:13]} 58. Rxb5 {[%emt 0:00:05]} axb5 {[%emt 0:00:04]} 59. Bd6 {[%emt 0:00:10]} h3 {[%emt 0:00:21]} 60. gxh3+ {[%emt 0:00:01]} Kxh3 {[%emt 0:00:02]} 61. Bc5 {[%emt 0:00:29]} Kg4 {[%emt 0:00:08]} 62. Kf1 {[%emt 0:00:06]} Kf3 {[%emt 0:00:09]} 63. Bd6 {[%emt 0:00:11]} g2+ {[%emt 0:00:17]} 64. Kg1 {[%emt 0:00:01]} Ke2 {[%emt 0:00:13]} 65. Bc5 {[%emt 0:00:04]} Kd2 {[%emt 0:00:10]} 66. Kf2 {[%emt 0:00:01]} Kc3 {[%emt 0:00:27]} 67. Ke2 {[%emt 0:00:17]} b4 {[%emt 0:00:48]} 68. Kd1 {[%emt 0:00:02]} Kb2 {[%emt 0:00:17]} 69. Kd2 {[%emt 0:00:02]} b3 {[%emt 0:00:13]} 0-1

[Event "S. A. Group BAN-chT 2018"]
[Site "Dhaka"]
[Date "2018.12.16"]
[Round "11"]
[White "Sidhant, Mohapatra"]
[Black "Uddin, Saif"]
[Result "1-0"]
[ECO "B07"]
[WhiteElo "2343"]
[BlackElo "1997"]
[Annotator "NA"]
[PlyCount "45"]
[EventDate "2018.12.07"]
[EventType "team-tourn"]
[EventCountry "BAN"]
[SourceTitle "playchess.com"]
[Source "ChessBase"]
[SourceQuality "1"]
[TimeControl "5400+30"]

{[%evp 12,45,45,31,38,36,70,52,79,33,51,52,61,17,235,202,239,199,169,187,258,247,256,254,234,179,176,172,179,171,170,169,195,190,175,166]} 1. e4 {[%emt 0:00:00]} d6 {[%emt 0:00:00]} 2. d4 {[%emt 0:00:25]} Nf6 {[%emt 0:00:00]} 3. Nc3 {[%emt 0:00:04]} g6 {[%emt 0:00:00]} 4. Bg5 {[%emt 0:01:50]} Bg7 {[%emt 0:00:21]} 5. Qd2 {[%emt 0:00:26]} h6 {[%emt 0:00:31]} 6. Bf4 {[%emt 0:00:31]} c6 {[%emt 0:01:47]} 7. O-O-O {[%emt 0:02:04] LiveBook: 9 Games. B07: Pirc Defence: Miscellaneous Systems} (7. h3 Nfd7 8. Nf3 e5 9. Be3 Qe7 10. Rd1 a6 11. Be2 b5 12. a3 Bb7 13. O-O h5 14. Bg5 f6 {0-1 (54) Sjugirov,S (2665)-Onischuk,V (2613) Almaty 2016}) 7... Qa5 {[%emt 0:00:24]} 8. Kb1 {[%emt 0:04:54]} Be6 {[%emt 0:02:23] [#] ...Nxe4! is the strong threat.} 9. a3 $146 {[%emt 0:01:45] White is slightly better.} ({Predecessor:} 9. f3 Na6 10. Nge2 Rc8 11. Nc1 c5 {1-0 (41) Schweiger,G (2000)-Meingast,M (2056) Bayern 2007}) 9... g5 {[%emt 0:07:51]} 10. Bg3 {[%emt 0:01:10]} Nh5 $1 {[%emt 0:00:12]} 11. Nge2 {[%emt 0:02:12]} Na6 {[%emt 0:01:19]} 12. f4 {[%emt 0:03:17]} g4 $2 {[%emt 0:04:20] [#]} (12... Bg4 $11 {and Black is okay.}) 13. f5 {[%emt 0:00:52]} Bd7 {[%emt 0:03:42]} 14. Bf2 {[%emt 0:02:23]} d5 {[%emt 0:15:46]} 15. h3 {[%emt 0:03:28]} g3 {[%emt 0:08:48]} (15... dxe4 $142 16. hxg4 Nf6) 16. Nxg3 $18 {[%emt 0:02:12]} Nxg3 {[%emt 0:00:10]} 17. Bxg3 {[%emt 0:00:05]} dxe4 {[%emt 0:00:13]} 18. f6 {[%emt 0:00:33] White is clearly better.} ({Don't play} 18. Nxe4 $6 Qxd2 19. Rxd2 (19. Nxd2 Bxf5 20. Nb3 O-O-O $16) 19... Bxf5 $16) 18... Bxf6 {[%emt 0:05:34]} 19. Nxe4 {[%emt 0:00:14]} Qxd2 {[%emt 0:00:21]} 20. Nxf6+ {[%emt 0:00:05]} ({But not} 20. Nxd2 $6 Bxd4 21. Ne4 Bb6 $14) 20... exf6 {[%emt 0:00:13]} 21. Rxd2 {[%emt 0:00:02]} Be6 {[%emt 0:01:50]} 22. Bh4 {[%emt 0:00:15]} f5 {[%emt 0:01:02]} 23. Bd3 {[%emt 0:00:04] Accuracy: White = 39%, Black = 48%.} 1-0

[Event "S. A. Group BAN-chT 2018"]
[Site "Dhaka"]
[Date "2018.12.16"]
[Round "11"]
[White "Saiful Islam, Chowdhury"]
[Black "Sai Agni Jeevitesh, J."]
[Result "0-1"]
[ECO "B07"]
[WhiteElo "2120"]
[BlackElo "2336"]
[Annotator "NA"]
[PlyCount "110"]
[EventDate "2018.12.07"]
[EventType "team-tourn"]
[EventCountry "BAN"]
[SourceTitle "playchess.com"]
[Source "ChessBase"]
[SourceQuality "1"]
[TimeControl "5400+30"]

1. e4 {[%emt 0:02:27]} d6 {[%emt 0:00:00]} 2. d4 {[%emt 0:00:05]} Nf6 {[%emt 0:00:00]} 3. Nc3 {[%emt 0:00:06]} Nbd7 {[%emt 0:00:00]} 4. Nge2 {[%emt 0:01:58]} e5 {[%emt 0:00:00]} 5. f3 {[%emt 0:00:12]} c6 {[%emt 0:00:03]} 6. Be3 {[%emt 0:02:08]} Be7 {[%emt 0:00:18]} 7. Qd2 {[%emt 0:00:14] LiveBook: 68 Games} O-O {[%emt 0:01:31]} 8. g4 {[%emt 0:00:10]} b5 {[%emt 0:00:12] B07: Pirc Defence: Miscellaneous Systems} 9. Ng3 {[%emt 0:02:40]} (9. g5 Ne8 10. f4 b4 11. Nd1 exf4 12. Bxf4 d5 13. exd5 cxd5 {1-0 (55) Ponkratov,P (2624)-Goganov,A (2609) Khanty-Mansiysk 2014}) 9... exd4 {[%emt 0:01:18]} 10. Bxd4 {[%emt 0:00:17]} b4 {[%emt 0:00:17]} 11. Nd1 {[%emt 0:00:46]} c5 {[%emt 0:00:27]} 12. Be3 {[%emt 0:02:34]} Ne5 {[%emt 0:03:19]} 13. Be2 {[%emt 0:00:23]} Be6 {[%emt 0:00:13]} 14. g5 {[%emt 0:03:39]} Ne8 $146 {[%emt 0:02:07]} ({Predecessor:} 14... Nfd7 15. Nf2 Nb6 16. b3 {1-0 (35) Reddmann,H (2319)-Moehrmann,M (2091) Hamburg 2005}) 15. f4 {[%emt 0:01:14]} Nc4 {[%emt 0:01:10]} 16. Bxc4 {[%emt 0:00:13]} Bxc4 {[%emt 0:00:02]} 17. Nf2 {[%emt 0:01:43]} Nc7 {[%emt 0:01:00]} 18. f5 {[%emt 0:04:59]} Re8 {[%emt 0:08:12] [#]} 19. Ng4 $1 {[%emt 0:07:52]} Bf8 {[%emt 0:03:43]} 20. Kf2 {[%emt 0:06:06]} (20. Qg2 $16) 20... d5 {[%emt 0:03:01]} 21. e5 {[%emt 0:04:56]} (21. Bf4 $11) 21... d4 {[%emt 0:02:12]} 22. Bf4 {[%emt 0:00:07]} Nd5 {[%emt 0:05:48]} (22... d3 $5 {[%cal Rd8d4]} 23. b3 Bb5 24. cxd3 Qd7 $15) 23. Rhe1 {[%emt 0:00:32]} d3 {[%emt 0:07:01] [#]} (23... Ba6 $15 {keeps the upper hand.}) 24. b3 {[%emt 0:08:48]} (24. e6 $1 $16) 24... Bb5 {[%emt 0:02:29]} ({But not} 24... Nxf4 $6 25. Qxf4 Bb5 26. cxd3 $14 Qd4+ 27. Qxd4 $16) 25. cxd3 {[%emt 0:01:10]} Bxd3 {[%emt 0:03:15]} 26. h4 {[%emt 0:12:33]} (26. Qxd3 $11 {remains equal.} Nxf4 27. Qxd8 Raxd8 28. Kf3) 26... Qb6 {[%emt 0:04:37]} 27. Kg2 {[%emt 0:06:39]} Rad8 {[%emt 0:00:40]} 28. Nf2 {[%emt 0:03:23]} Ba6 {[%emt 0:05:08]} 29. Nge4 {[%emt 0:04:26]} Ne7 {[%emt 0:01:03]} 30. Qe3 {[%emt 0:03:38]} Nxf5 {[%emt 0:01:24] Double Attack} 31. Qh3 {[%emt 0:00:10]} Nd4 {[%emt 0:01:20]} 32. Kh2 {[%emt 0:02:11]} Bc8 {[%emt 0:04:13]} 33. Qg3 {[%emt 0:02:53]} Qg6 {[%emt 0:01:58]} 34. Rac1 $11 {[%emt 0:01:28] and White is okay.} Nf5 {[%emt 0:01:44]} (34... Qh5 35. Kh1) 35. Qg4 {[%emt 0:00:41]} Nd4 $2 {[%emt 0:02:39]} (35... Qa6 $19 36. Qe2 Qxe2 37. Rxe2 Nxh4 38. Nxc5 Ng6) 36. h5 $2 {[%emt 0:02:49]} Bxg4 {[%emt 0:07:17]} 37. hxg6 {[%emt 0:00:08]} Bh5 {[%emt 0:01:33]} ({And not} 37... hxg6 38. Nxg4 Nf3+ {[%mdl 64] Double Attack} 39. Kg2 $11) 38. gxf7+ {[%emt 0:01:57]} Kxf7 {[%emt 0:00:51]} 39. Rf1 {[%emt 0:05:04]} Kg6 {[%emt 0:03:35]} 40. Bg3 {[%emt 0:01:29]} Be2 {[%emt 0:01:48]} 41. Nh3 {[%emt 0:00:42]} Bxf1 {[%emt 0:01:03]} 42. Rxf1 {[%emt 0:00:45]} Ne6 {[%emt 0:00:02]} 43. Nd6 {[%emt 0:01:04]} Bxd6 {[%emt 0:00:34]} 44. exd6 {[%emt 0:00:06]} Rf8 {[%emt 0:01:18]} 45. Re1 {[%emt 0:00:16]} Nxg5 {[%emt 0:22:05]} 46. Nxg5 {[%emt 0:00:25]} Kxg5 {[%emt 0:00:00]} 47. Re7 {[%emt 0:00:10]} Kg6 {[%emt 0:00:00]} 48. Rxa7 {[%emt 0:00:40]} Rf5 {[%emt 0:00:00]} 49. Rc7 {[%emt 0:00:33]} Rd5 {[%emt 0:00:00]} 50. Kg2 {[%emt 0:00:28]} h5 {[%emt 0:00:00]} 51. Kf3 {[%emt 0:00:11]} Rd3+ {[%emt 0:00:00]} 52. Kg2 {[%emt 0:00:28]} Rd5 {[%emt 0:00:00]} 53. Kf3 {[%emt 0:00:12]} Rf8+ {[%emt 0:00:00]} 54. Ke3 {[%emt 0:00:50]} Re8+ {[%emt 0:00:00]} 55. Kf2 {[%emt 0:00:19]} Rd2+ $19 {[%emt 0:00:00]} 0-1

[Event "S. A. Group BAN-chT 2018"]
[Site "Dhaka"]
[Date "2018.12.16"]
[Round "11"]
[White "Uten"]
[Black "Ikramul, Haq Siam"]
[Result "0-1"]
[ECO "C06"]
[WhiteElo "2114"]
[BlackElo "2116"]
[Annotator "NA"]
[PlyCount "86"]
[EventDate "2018.12.07"]
[EventType "team-tourn"]
[EventCountry "BAN"]
[SourceTitle "playchess.com"]
[Source "ChessBase"]
[SourceQuality "1"]
[TimeControl "5400+30"]

{[%evp 14,76,41,30,32,32767,32767,32767,32767,32767,-18,10,0,-29,0,-76,-44,-60,5,-74,-78,-77,-73,-144,-36,-81,-39,-25,0,0,-15,0,0,-149,-156,-162,32767,32767,32767,-156,32767,32767,32767,32767,32767,32767,-170,-230,-225,-570,-587,-523,-757,-734,-826,-339,-834,-1119,-1292,-1872,-6407,-2722,-5085,-29981,-29980]} 1. e4 {[%emt 1:30:30]} e6 {[%emt 1:30:30]} 2. d4 {[%emt 0:00:30]} d5 {[%emt 0:00:30]} 3. Nd2 {[%emt 0:00:30]} Nf6 {[%emt 0:00:30]} 4. e5 {[%emt 0:00:30]} Nfd7 5. Bd3 {[%emt 0:00:30]} c5 {[%emt 0:01:00]} 6. c3 {[%emt 0:00:30]} Nc6 {[%emt 0:00:30]} 7. Ne2 {[%emt 0:00:30]} cxd4 {[%emt 0:00:30]} 8. cxd4 {[%emt 0:00:30] LiveBook: 5052 Games} f6 9. f4 {[%emt 0:00:30]} fxe5 {[%emt 0:01:00]} 10. dxe5 {[%emt 0:00:30]} Qb6 {[%emt 0:00:30] C06: French Tarrasch: 3...Nf6 4 e5 Nfd7 5 Bd3 main lines} (10... Nc5 11. Bb1 Bd7 12. O-O Qb6 13. Kh1 Be7 14. Nc3 O-O-O 15. a3 a5 16. b4 axb4 17. axb4 Nxb4 18. Nf3 {1-0 (28) Khairullin,I (2451)-Iljushin,A (2526) Moscow 2004}) 11. Nf3 {[%emt 0:00:30]} Bb4+ {[%emt 0:00:30]} 12. Kf1 {[%emt 0:00:30]} Be7 {[%emt 0:00:30]} 13. h4 $146 {[%emt 0:00:30]} ({Predecessor:} 13. a3 Nc5 14. b4 Nxd3 15. Qxd3 O-O 16. Be3 Qd8 17. h4 {½-½ (56) Chlewinski,A (1704)-Cymbala,I (1910) Lublin 2012}) 13... Nc5 {[%emt 0:00:30]} 14. Nc3 {[%emt 0:00:30]} (14. Be3 $11 {remains equal.}) 14... Nxd3 {[%emt 0:00:30]} 15. Qxd3 {[%emt 0:00:30]} Nb4 {[%emt 0:00:30]} (15... O-O $17 16. a3 (16. Ng5 g6 $17) 16... Qa6 17. Qxa6 bxa6) 16. Qb5+ {[%emt 0:00:30]} (16. Qe2 $1 $11 {remains equal.}) 16... Bd7 {[%emt 0:00:30]} 17. Qxb6 {[%emt 0:00:30]} axb6 {[%emt 0:00:30]} 18. Ke2 {[%emt 0:00:30]} (18. a3 $142) 18... O-O {[%emt 0:00:30]} ({Black should play} 18... Nc2 $17 19. Rb1 d4) 19. a3 {[%emt 0:00:30]} Rfc8 {[%emt 0:00:30]} 20. Bd2 {[%emt 0:00:30]} Na6 {[%emt 0:00:30]} 21. b4 {[%emt 0:00:30]} Rc4 {[%emt 0:00:30]} 22. Kd3 {[%emt 0:00:30]} Rac8 {[%emt 0:00:30]} 23. Nd4 {[%emt 0:00:30] [#]} (23. h5 $11) 23... Bxb4 $1 {[%emt 0:00:30]} 24. axb4 {[%emt 0:00:30]} Nxb4+ {[%emt 0:00:30]} 25. Ke3 {[%emt 0:00:30]} Rxd4 {[%emt 0:00:30]} 26. Kxd4 {[%emt 0:00:30]} Rc4+ 27. Ke3 {[%emt 0:00:30]} d4+ 28. Ke2 {[%emt 0:00:30]} dxc3 {[%emt 0:01:30]} 29. Be3 {[%emt 0:00:30]} Re4 {[%emt 0:00:30]} 30. Rhd1 {[%emt 0:00:30]} (30. Ra8+ $17 {was necessary.} Kf7 31. Rd8 Bb5+ 32. Kf3) 30... Nd5 {[%emt 0:00:30] Double Attack} 31. Rxd5 $2 {[%emt 0:00:30]} (31. Kf2 {was the crucial defense.}) 31... exd5 {[%emt 0:00:30]} 32. Kf3 {[%emt 0:00:30] [#]} Bg4+ $1 {[%emt 0:00:30]} 33. Kxg4 {[%emt 0:00:30]} Rxe3 {[%emt 0:00:30]} 34. Ra8+ {[%emt 0:00:30]} Kf7 {[%emt 0:00:30]} 35. Rb8 {[%emt 0:00:30] [#]} h5+ $1 {[%emt 0:00:30]} 36. Kg5 {[%emt 0:00:30]} Rg3+ {[%emt 0:00:30]} 37. Kxh5 {[%emt 0:00:30]} c2 $19 {[%emt 0:00:30]} 38. Rxb7+ {[%emt 0:00:30]} Ke6 {[%emt 0:00:30]} 39. Rc7 {[%emt 0:00:30]} Rxg2 {[%emt 0:00:30]} 40. Rc6+ {[%emt 0:00:30]} Kf5 {[%emt 0:00:30]} 41. e6 {[%emt 0:00:30]} Rg6 {[%emt 0:00:30]} 42. e7 {[%emt 0:00:30]} Rxc6 {[%emt 0:00:30]} 43. e8=Q {[%emt 0:00:30]} Rh6# {[%emt 0:00:30]} 0-1